Cogmind - Beta 17 @@@ ROGUE MODE // 2026.07.20 @ 16:22:44 Player: epicnox Result: Destroyed by Autobeam Turret with Autobeam Performance ------------- Evolutions (0) 0 Regions Visited (2) 400 Robots Destroyed (18) 90 Value Destroyed (295) 295 Prototype IDs (1) 20 Alien Tech Used (0) 0 Bonus (5500) 5500 TOTAL SCORE: 6305 Bonus ------- Prayed to X0-1V1 5000 Major X0-1V1 Interference 500 Cogmind --------- Core Integrity 0/150 Matter 221/700 Energy 1000/1000 System Corruption 4% Temperature Cool (6) Movement Core (800) Ox15 Location -10/Subcaves Parts ------- > --- POWER (2) -------- Subdweller Power Source > --- PROPULSION (1) --- (None) > --- UTILITY (2) ------ High-capacity Storage Unit > --- WEAPON (2) ------- Barrage Gun > --- INVENTORY (20) --- Structural Scanner Signal Interpreter Improved Terrain Scanner ECM Suite ECM Suite Small Laser Subdweller Machine Gun Welding Torch Scrap Shield Fragment (48) Scrap Shield Fragment (47) Scrap Shield Fragment (4) Peak State ------------ > --- POWER ------------ Subdweller Power Source > --- PROPULSION ------- (None) > --- UTILITY ---------- High-capacity Storage Unit X0-1V1's Piety Tracker > --- WEAPON ----------- Assault Rifle Barrage Gun > --- INVENTORY -------- Structural Scanner Signal Interpreter Improved Terrain Scanner ECM Suite ECM Suite Small Laser Subdweller Machine Gun Welding Torch Scrap Shield Fragment Scrap Shield Fragment Scrap Shield Fragment [Rating: 21] Favorites ----------- Power Light Ion Engine Engine Light Ion Engine Propulsion Light Treads Treads Light Treads Utility High-capacity Storage Unit Device Structural Scanner Storage High-capacity Storage Unit Weapon Assault Rifle Energy Gun Small Laser Ballistic Gun Assault Rifle Build | -11 -10 -10 ------- Run | Yrd Mat Sub Slots Evolved . | . . . Power . | . . . Propulsion . | . . . Utility . | . . . Weapon . | . . . Parts Attached 13 | 8 1 4 Power 2 | 1 . 1 Engine 2 | 1 . 1 Core . | . . . Reactor . | . . . Propulsion 2 | 2 . . Treads 2 | 2 . . Leg . | . . . Wheel . | . . . Hover . | . . . Flight . | . . . Utility 5 | 2 1 2 Device 2 | . . 2 Storage 3 | 2 1 . Processor . | . . . Hackware . | . . . Protection . | . . . Artifact . | . . . Weapon 4 | 3 . 1 Energy Gun 1 | 1 . . Energy Cannon . | . . . Ballistic Gun 3 | 2 . 1 Ballistic Cannon . | . . . Launcher . | . . . Special Weapon . | . . . Impact Weapon . | . . . Slashing Weapon . | . . . Piercing Weapon . | . . . Special Melee Weapon . | . . . Unidentified Prototypes 1 | . . 1 Parts Lost 5 | . . 5 Power 1 | . . 1 Propulsion 1 | . . 1 Utility 2 | . . 2 Weapon 1 | . . 1 Highest Loss Streak 2 | . . 2 To Critical Strikes . | . . . Average Backups 5 | 2 3 7 Power . | . . . Propulsion . | . . . Utility 3 | . 1 5 Weapon 1 | 1 1 1 Tool/Special . | . . . Unused Backups 6 | . . 6 Power . | . . . Propulsion . | . . . Utility 4 | . . 4 Weapon 1 | . . 1 Tool/Special 1 | . . 1 Average Slot Usage (%) 84 | . 100 76 Engine 9 | . 14 6 Treads 18 | . 28 12 Device 8 | . . 12 Storage 19 | . 28 14 Energy Gun 7 | . 8 7 Ballistic Gun 20 | . 19 20 Peak Build Rating 21 | 7 9 21 Average Rating 10 | 5 7 12 On Entrance 5 | . 7 9 Avg Prop Armor Cover (%) . | . . . Naked Turns . | . . . Heaviest Build 51 | 13 48 51 Greatest Support 40 | 40 40 40 Greatest Overweight (x) 16 | 1 1 16 Average Overweight (x) 2 | . . 4 Largest Inventory Capacity 20 | 8 20 20 Average Capacity 18 | 7 18 20 Most Carried 12 | 5 8 12 Average Carried 6 | 2 3 9 Final Capacity 20 | 8 20 20 Final Carried 11 | 2 8 11 Class Distribution -------------------- 100% | Mutant Dominant Class ---------------- Mutant | -10/Materials Mutant | -10/Subcaves Resources | -11 -10 -10 ----------- Run | Yrd Mat Sub Matter Collected 473 | 308 57 108 Remotely . | . . . Salvage Created 473 | 144 86 243 Parts 36 | 6 12 18 Haulers Intercepted . | . . . Recyclers Shooed . | . . . Parts Field Recycled . | . . . Retrieved Matter . | . . . Parts Self-Destructed 18 | . . 18 Prevented . | . . . Parts Restored . | . . . Kills | -11 -10 -10 ------- Run | Yrd Mat Sub Combat Hostiles Destroyed 11 | . 3 8 Guns 11 | . 3 8 Classes Destroyed 10 | 3 3 4 Worker 2 | 2 . . Builder 1 | . 1 . Tunneler 1 | 1 . . Recycler 1 | 1 . . Turret 1 | . . 1 Watcher 1 | . 1 . Swarmer 7 | . 3 4 Grunt 1 | . . 1 Sentry 1 | . . 1 Subdweller 2 | . . 2 Best Kill Streak 5 | 2 3 5 Combat Bots Only 4 | . 3 4 Max Kills in Single Turn 2 | 1 2 2 Gunslinging . | . . . Exploded . | . . . Melee . | . . . Uniques/NPCs Destroyed . | . . . Combat | -11 -10 -10 -------- Run | Yrd Mat Sub Hostile Shots Fired 95 | . 3 92 Missed 30 | . . 30 Hits 65 | . 3 62 Projectile 65 | . 3 62 AOE 4 | . . 4 Damage Taken 757 | . 24 733 Core 194 | . 10 184 Absorbed by Shields . | . . . Core Remaining (%) 100 | 100 . . Volleys Fired 74 | 14 36 24 Largest 2 | 1 2 2 Hottest 60 | 40 60 60 Shots Fired 100 | 14 41 45 Gun 100 | 14 41 45 Cannon . | . . . Launcher . | . . . Special . | . . . Kinetic 51 | . 8 43 Thermal 49 | 14 33 2 Explosive . | . . . Electromagnetic . | . . . Robot Hit Streak 6 | 4 5 6 Robot Miss Streak 3 | 2 2 3 Penetration Max . | . . . Secondary Targets 1 | . . 1 Max Gunslinging Chain 1 | . . 1 Shots Hit Robots 48 | 10 15 23 Core Hits 23 | 5 5 13 Critical Kills . | . . . Critical Parts Destroyed . | . . . Critical Strikes . | . . . Melee Attacks . | . . . Impact . | . . . Slashing . | . . . Piercing . | . . . Sneak Attacks . | . . . Combat Hostiles . | . . . Follow-up Attacks . | . . . Damage Inflicted 629 | 109 172 348 Guns 629 | 109 172 348 Cannons . | . . . Explosions . | . . . Melee . | . . . Ramming . | . . . Kinetic 409 | . 71 338 Thermal 220 | 109 101 10 Explosive . | . . . Electromagnetic . | . . . Impact . | . . . Slashing . | . . . Piercing . | . . . Highest Corruption 4 | . . 4 Average Corruption 4 | . . 4 Corruption Purged . | . . . Corruption Blocked . | . . . Effects 9 | . . 9 Message Errors 5 | . . 5 Matter Fused 1 | . . 1 Data Loss (major) 3 | . . 3 Overload Shots . | . . . Overflow Damage . | . . . Projectiles . | . . . Explosions . | . . . Melee . | . . . Knockbacks . | . . . Impact . | . . . Kinetic . | . . . Secondary . | . . . Self-Inflicted Damage . | . . . Shots . | . . . Rammed . | . . . Targets Rammed . | . . . Kicked . | . . . Crushed . | . . . Highest Temperature . | . . . Average Temperature . | . . . Received Heat Transfer 228 | . . 228 Siege Activations . | . . . Martial Activations . | . . . Shielding Activations . | . . . Robots Disrupted . | . . . Combat Hostiles . | . . . Robots Corrupted . | . . . Combat Hostiles . | . . . Parts Fried . | . . . Impact Corruptions . | . . . Robots Melted . | . . . Combat Hostiles . | . . . Parts Melted 1 | 1 . . Heat Transferred 500 | 250 225 25 Parts Sabotaged . | . . . Parts Stolen . | . . . Parts Stripped . | . . . Power Chain Reactions . | . . . Alert | -11 -10 -10 ------- Run | Yrd Mat Sub Maximum Alert Level . | . . . Low Security (%) 100 | 100 100 . Level 1 . | . . . Level 2 . | . . . Level 3 . | . . . Level 4 . | . . . Level 5 . | . . . High Security . | . . . Max Security . | . . . Peak Influence 70 | 5 70 . Initial . | . . . Average 6 | 1 7 . Influence Increases 242 | 20 82 140 Destroy 0b10 Robot/C 200 | . 60 140 Destroy 0b10 Robot/NC 30 | 20 10 . Destroy Leader 12 | . 12 . Influence Decreases 166 | 20 82 64 Time Decay 146 | 20 82 44 Lost Part 20 | . . 20 Squads Dispatched . | . . . Investigation . | . . . Extermination . | . . . Reinforcement . | . . . Assault . | . . . Garrison . | . . . Intercept . | . . . Searches Triggered . | . . . Construction Impeded . | . . . Haulers Reinforced . | . . . Active Scanning Responses . | . . . Cargo Convoy Interrupts . | . . . Stealth | -11 -10 -10 --------- Run | Yrd Mat Sub Distress Signals . | . . . Communications Jammed . | . . . Distress Signals . | . . . Times Spotted 17 | . 5 12 Peak Tracking Total 6 | . 2 6 Tactical Retreats . | . . . Traps | -11 -10 -10 ------- Run | Yrd Mat Sub Traps Triggered . | . . . Indirectly . | . . . Trap Hack Attempts . | . . . Triggered . | . . . Disarmed . | . . . Reprogrammed . | . . . Reused . | . . . Traps Extracted . | . . . Installed . | . . . Triggered . | . . . Machines | -11 -10 -10 ---------- Run | Yrd Mat Sub Machines Disabled 1 | . . 1 Max in Single Turn 1 | . . 1 Machines Repaired . | . . . Machines Dismantled . | . . . Machines Sabotaged . | . . . Overloaded Fab Kills . | . . . Hacking | -11 -10 -10 --------- Run | Yrd Mat Sub Machines Accessed 1 | . . 1 Terminals . | . . . Fabricators . | . . . Repair Stations . | . . . Recycling Units . | . . . Scanalyzers . | . . . Garrison Access . | . . . Total Hacks 3 | . . 3 Successful 3 | . . 3 Failed . | . . . Catastrophic . | . . . Database Lockouts . | . . . Manual 2 | . 1 1 Terminals . | . . . Fabricators . | . . . Repair Stations . | . . . Recycling Units . | . . . Scanalyzers . | . . . Garrison Access . | . . . Terminal Hacks 3 | . . 3 Record 3 | . . 3 Fabricator Hacks . | . . . Repair Station Hacks . | . . . Recycling Unit Hacks . | . . . Scanalyzer . | . . . Garrison Access Hacks . | . . . Unauthorized Hacks . | . . . Terminals . | . . . Fabricators . | . . . Repair Stations . | . . . Recycling Units . | . . . Scanalyzers . | . . . Garrison Access . | . . . Data Cores Recovered . | . . . Used . | . . . Hacking Detections . | . . . Full Trace Events . | . . . Feedback Events . | . . . Feedback Blocked . | . . . Robot Schematics Acquired . | . . . Robots Built . | . . . Authchips . | . . . Time . | . . . Total Robot Build Rating . | . . . Part Schematics Acquired . | . . . Parts Built . | . . . Authchips . | . . . Time . | . . . Total Part Build Rating . | . . . Part Studies Acquired . | . . . Parts Repaired . | . . . Time . | . . . Parts Recycled . | . . . Recycled Matter . | . . . Retrieved Matter . | . . . Retrieved Components . | . . . Parts Scanalyzed . | . . . Part Schematics Acquired . | . . . Parts Damaged . | . . . Bothacking | -11 -10 -10 ------------ Run | Yrd Mat Sub Used RIF Installer . | . . . Robots Hacked . | . . . Non-combat . | . . . Combat . | . . . Robot Hacks Applied . | . . . Relay Couplers Released . | . . . Fabnet Peak Effective % . | . . . Robots Rewired . | . . . Allies Hacked . | . . . Hacks Repelled . | . . . Allies | -11 -10 -10 -------- Run | Yrd Mat Sub Total Allies 1 | . . 1 Largest Group 1 | . . 1 Highest-Rated Group 19 | . . 19 Highest-Rated Ally 19 | . . 19 Total Orders . | . . . Ally Attacks . | . . . Total Damage . | . . . Kills . | . . . Allies Corrupted . | . . . Allies Melted . | . . . X0-1V1 Amusement Gains 16 | . 6 10 Good Acts 8 | . . 8 Bad Acts 6 | . . 6 Intel | -11 -10 -10 ------- Run | Yrd Mat Sub Active Infowar (turns) 710 | . . 710 Structural 710 | . . 710 Robot Analysis Total . | . . . Derelict Logs Recovered . | . . . Drone Launches . | . . . Drone Recoveries . | . . . Exploration | -11 -10 -10 ------------- Run | Yrd Mat Sub Turns Passed 2468 | 155 816 1497 Spaces Moved 655 | 56 227 372 Core 118 | 16 . 102 Treads 537 | 40 227 270 Legs . | . . . Wheels . | . . . Hover . | . . . Flight . | . . . Fastest Speed 50 | 50 160 240 Average Speed 304 | 132 222 380 Slowest Speed 850 | 160 240 850 Overloaded Moves . | . . . Propulsion Burnouts . | . . . Robots Hopped . | . . . Potential Cave-ins . | . . . Cave-ins Triggered . | . . . Exploration Rate (%) 15 | 5 24 16 Regions Visited 2 Branch Regions 1 Pre-discovered Areas . | . . . Known Exits Taken . | . . . Unknown Exits Taken 2 | 1 1 . Scrap Searched . | . . . Spaces Dug . | . . . Terrain Destroyed . | . . . Melee . | . . . Projectile . | . . . AOE . | . . . Terrain Rammed . | . . . Walls Destroyed . | . . . Machines Disabled . | . . . Actions | -11 -10 -10 --------- Run | Yrd Mat Sub Total 1029 | 123 496 410 Wait 258 | 35 222 1 Move 653 | 55 226 372 Hop . | . . . Pick Up 23 | 9 7 7 Fast Attach . | . . . Attach 11 | 8 . 3 Detach 1 | 1 . . Swap 7 | 1 4 2 Drop 2 | . 1 1 Fire 74 | 14 36 24 Melee . | . . . Ram . | . . . Kick . | . . . Crush . | . . . Escape Stasis . | . . . Rewire . | . . . Trap . | . . . Miscellaneous . | . . . Route ------- -11/Scrapyard -10/Materials (discovered 2 exits: [*Min] / *Sub) -10/Subcaves (discovered 1 exit: [*Rec]) History --------- Turn | Location | Event 8 | -11/Scrapyard | Discovered new exit (range 14) 156 | -11/Scrapyard | Entered Materials 293 | -10/Materials | Discovered new exit (range 16) 308 | -10/Materials | Build established: Mutant 925 | -10/Materials | Discovered new exit (range 8) 945 | -10/Materials | Prayed at D.C.S.S. Altar Unit 972 | -10/Materials | Entered Subcaves 1256 | -10/Subcaves | EM resistance permanently improved by X0-1V1 (+10%; -100 max core) 1366 | -10/Subcaves | X0-1V1 activates XOMVISION 1639 | -10/Subcaves | X0-1V1 turns hostiles against one another 1656 | -10/Subcaves | X0-1V1 mutated your Propulsion slot to Power slot 2099 | -10/Subcaves | Shifting Twisted Machinery released Barrage Gun 2277 | -10/Subcaves | Visited Clippyterm 2300 | -10/Subcaves | Learned Factory trap positions 2429 | -10/Subcaves | Discovered new exit (range 12) 2433 | -10/Subcaves | Core integrity fell below 50% 2464 | -10/Subcaves | Core integrity fell below 20% 2469 | -10/Subcaves | Destroyed by Autobeam Turret with Autobeam Last Messages --------------- Flight Unit fries itself beyond repair. Lgt. Ion Engine fries itself beyond repair. Flight Unit fries itself beyond repair. Lgt. Assault Rifle fries itself beyond repair. S-10 Pest destroyed. Flight Unit fries itself beyond repair. Subatomizers dissect the Lgt. Ion Engine. Acquired 36 matter. Flight Unit fries itself beyond repair. Lgt. Ion Engine fries itself beyond repair. Assault Rifle destroyed. Lgt. Ion Engine fries itself beyond repair. Machine disabled. X0-1V1's Piety Tracker destroyed. X0-1V1 is mildly amused. Autobeam Turret destroyed. X0-1V1: "One less obstacle for my toy on its journey to the highest levels of glorious entertainment." System corrupted: Substantial component data lost. X0-1V1 guffaws! Map ----- +----------------------------------------------------+ | ?????????????????????????????????????????????????? | | ?????????????????????????????????????????????????? | | ?????????????????????????????????????????????????? | | ?????????????????????????????????????????????????? | | ?????????????????????????????????????????????????? | | ?????????????????????????????????????????????????? | | ?????????????????????????????????????????????????? | | ?????????????????????????????????????????????????? | | ?????????????????????????????????????????????????? | | ###??????????????????????????????????????????????? | | ###??????????????????????????????????????????????? | | #??????????????????????????????????????????????? | | ##??????????????????????????????????????????????? | | #???????????????????????????????????????????????? | | #???????????????????????##??????????????????????? | | ###?????????????????#####<#####??????????????????? | | #############????????"""" "" "#??????????????????? | | ######"""""#????????" " " "#??????????????????? | | " #""X""#????????? t % "???????????????????? | | "" #" "#????????? ???????????????????? | | ### ###?????????? ????????????????????? | | ### ##??????????? ?????????????????????? | | # #####???????# #?????????????????????? | | ## ####?###???# #?????????????????????? | | ## #### #####" #?????????????????????? | | ## ### #"@%#?????????????????????? | | " # &"#?????????????????????? | | " "" ## ???????????????????? | | ## #####"" """"" " " ????????????????? | | ######### ###?# " """"""""""?????????????????? | | ########## ###?# " """"""# # #????????????????? | | ##???????## ###?##########"###?#????????????????? | | ??????????#####????????????##????????????????????? | | ???????????####??????????????????????????????????? | | ?????????????????????????????????????????????????? | | ?????????????????????????????????????????????????? | | ?????????????????????????????????????????????????? | | ?????????????????????????????????????????????????? | | ?????????????????????????????????????????????????? | | ?????????????????????????????????????????????????? | | ?????????????????????????????????????????????????? | | ?????????????????????????????????????????????????? | | ?????????????????????????????????????????????????? | | ?????????????????????????????????????????????????? | | ?????????????????????????????????????????????????? | | ?????????????????????????????????????????????????? | | ?????????????????????????????????????????????????? | | | | | | | +----------------------------------------------------+ Best States ------------- Heat Dissipation 25 Energy Generation 15 Energy Capacity 1000 Matter Stores 350 Matter Capacity 700 Sight Range 19 Terrain Scan Density 10 Resistance: EM 10 Evasion (%) 50 Recoil Reduction 2 Item Schematics ----------------- None Robot Schematics ------------------ None Fabricated ------------ Nothing Repaired ---------- Nothing Studied --------- None Alien Tech Used ----------------- None Achievements -------------- Chaos Is Inevitable Challenges ------------ None Game ------ Seed PoweredExpertShooter Manual? 0 Play Time 00:18:30 Cumulative 12.8 hours Start 2026.07.20 @ 15:37:54 End 2026.07.20 @ 16:22:44 Sessions 1 Manual Loads 0 Difficulty Rogue Special Mode None Game No. 25 Rogue 25 Adventurer 0 Explorer 0 Win Type - Total 0 Types 0/0/0/0/0/0/0/0/0/0 Lore% 2 Gallery% 11 Achievement% 12 Wizard Run 0 Options --------- Layout 0 ASCII 0 Keyboard 0 Movement Numpad Keybinds 0 Fullscreen 1 Font 18/SmallcapsGlow Map View 38x25 Zoom Use 98% Tactical HUD 0 Map Filters NONE Filters NONE Steam 1 RUN: 6d29c26f-7172-4325-9ea7-32352fb955d5